fUSD/lending_fUSD_20250814
["ID","MTS","AMOUNT","RATE_DAILY","PERIOD"]
[379202217,1755185488971,-5281.85,0.00027534,2]
[379202218,1755185488980,-9573.35,0.00027534,2]
[379202219,1755185488990,-6179.54,0.00027534,2]
[379202220,1755185489000,-877.22,0.00027534,2]
[379202221,1755185489009,-400.0,0.00027534,2]
[379202222,1755185489019,-400.0,0.00027534,2]
[379202223,1755185489029,-400.0,0.00027534,2]
[379202224,1755185489038,-400.0,0.00027534,2]
[379202225,1755185489048,-2572.41,0.00027534,2]
[379202226,1755185489057,-1135.94,0.00027534,2]
[379202227,1755185489067,-1185.25,0.00027534,2]
[379202228,1755185489076,-3301.17,0.00027534,2]
[379202229,1755185489086,-400.0,0.00027534,2]
[379202230,1755185489096,-1636.72,0.00027534,2]
[379202231,1755185489105,-437.76,0.00027534,2]
[379202232,1755185489115,-1345.93,0.00027534,2]
[379202233,1755185489125,-915.67,0.00027534,2]
[379202234,1755185489137,-18929.48,0.00027534,2]
[379202235,1755185489147,-945.16,0.00027534,2]
[379202236,1755185489159,-3525.86,0.00027534,2]
[379202237,1755185489169,-261.156447,0.00027534,7]
[379202238,1755185489180,-1030.33,0.00027534,2]
[379202239,1755185489190,-261.156447,0.00027534,7]
[379202240,1755185489199,-400.0,0.00027534,2]
[379202241,1755185489209,-635.86,0.00027534,2]
[379202242,1755185489219,-6202.44,0.00027534,2]
[379202243,1755185489233,-6566.64,0.00027534,2]
[379202244,1755185489243,-418.43,0.00027534,2]
[379202245,1755185489252,-859.69,0.00027534,2]
[379202246,1755185489261,-400.0,0.00027534,2]
[379202247,1755185489271,-5564.48,0.00027534,2]
[379202248,1755185489281,-3626.23,0.00027534,2]
[379202249,1755185489291,-400.0,0.00027534,2]
[379202250,1755185489301,-3116.26,0.00027534,2]
[379202251,1755185489311,-400.0,0.00027534,2]
[379202252,1755185489320,-3262.33,0.00027534,2]
[379202253,1755185489330,-1976.84,0.00027534,2]
[379202254,1755185489339,-400.0,0.00027534,2]
[379202255,1755185489349,-261.156447,0.00027534,7]
[379202256,1755185489358,-261.156447,0.00027534,7]
[379202257,1755185489368,-480.73,0.00027534,2]
[379202258,1755185489377,-400.0,0.00027534,2]
[379202259,1755185489388,-1302.43,0.00027534,2]
[379202260,1755185489398,-400.0,0.00027534,2]
[379202261,1755185489411,-400.0,0.00027534,2]
[379202262,1755185489421,-400.0,0.00027534,2]
[379202263,1755185489430,-550.6,0.00027534,2]
[379202264,1755185489439,-2424.23,0.00027534,2]
[379202265,1755185489449,-730.126068,0.00027534,7]
[379202266,1755185489458,-730.126068,0.00027534,7]
[379202267,1755185489468,-606.72,0.00027534,2]
[379202268,1755185489478,-730.126068,0.00027534,7]
[379202269,1755185489487,-400.0,0.00027534,2]
[379202270,1755185489497,-730.126068,0.00027534,7]
[379202271,1755185489507,-400.0,0.00027534,2]
[379202272,1755185489518,-17273.92,0.00027534,2]
[379202273,1755185489528,-2687.1,0.00027534,2]
[379202274,1755185489538,-4608.25,0.00027534,2]
[379202275,1755185489552,-400.0,0.00027534,2]
[379202276,1755185489562,-1981.24,0.00027534,2]
[379202277,1755185489577,-2687.85,0.00027534,2]
[379202278,1755185489588,-2015.47,0.00027534,2]
[379202279,1755185489599,-730.126068,0.00027534,7]
[379202280,1755185489610,-400.0,0.00027534,2]
[379202281,1755185489619,-2929.51,0.00027534,2]
[379202282,1755185489630,-4685.61,0.00027534,2]
[379202283,1755185489640,-400.0,0.00027534,2]
[379202284,1755185489649,-730.126068,0.00027534,7]
[379202285,1755185489659,-5771.16,0.00027534,2]
[379202286,1755185489669,-730.126068,0.00027534,7]
[379202287,1755185489678,-400.0,0.00027534,2]
[379202288,1755185489687,-400.0,0.00027534,2]
[379202289,1755185489696,-2142.41,0.00027534,2]
[379202290,1755185489706,-4767.67,0.00027534,2]
[379202291,1755185489715,-730.126068,0.00027534,7]
[379202292,1755185489724,-2757.68,0.00027534,2]
[379202293,1755185489734,-400.0,0.00027534,2]
[379202294,1755185489743,-632.866916,0.00027534,7]
[379202295,1755185489753,-8474.45,0.00027534,2]
[379202296,1755185489763,-632.866916,0.00027534,7]
[379202297,1755185489772,-400.0,0.00027534,2]
[379202298,1755185489782,-447.5,0.00027534,2]
[379202299,1755185489791,-400.0,0.00027534,2]
[379202300,1755185489800,-400.0,0.00027534,2]
[379202301,1755185489810,-400.0,0.00027534,2]
[379202302,1755185489819,-400.0,0.00027534,2]
[379202303,1755185489831,-4346.13,0.00027534,2]
[379202304,1755185489842,-1099.63,0.00027534,2]
[379202305,1755185489852,-400.0,0.00027534,2]
[379202306,1755185489862,-632.866916,0.00027534,7]
[379202307,1755185489871,-3796.11,0.00027534,2]
[379202308,1755185489881,-632.866916,0.00027534,7]
[379202309,1755185489890,-400.0,0.00027534,2]
[379202310,1755185489900,-478.3,0.00027534,2]
[379202311,1755185489910,-2191.9,0.00027534,2]
[379202312,1755185489920,-2075.87,0.00027534,2]
[379202313,1755185489929,-400.0,0.00027534,2]
[379202314,1755185489940,-389.92840596,0.00027534,2]
[379202315,1755185489949,-400.0,0.00027534,2]
[379202316,1755185489959,-2124.43,0.00027534,2]
[379202317,1755185489979,-6540.61,0.00027534,2]
[379202318,1755185489990,-17694.51,0.00027534,2]
[379202319,1755185490000,-320.51907,0.00027534,7]
[379202320,1755185490010,-706.4,0.00027534,2]
[379202321,1755185490020,-320.51907,0.00027534,7]
[379202322,1755185490031,-5251.96,0.00027534,2]
[379202323,1755185490041,-8588.41,0.00027534,2]
[379202324,1755185490051,-2530.26,0.00027534,2]
[379202325,1755185490061,-2459.53,0.00027534,2]
[379202326,1755185490072,-2838.45,0.00027534,2]
[379202327,1755185490082,-5444.83,0.00027534,2]
[379202328,1755185490092,-1095.21,0.00027534,2]
[379202329,1755185490101,-320.51907,0.00027534,7]
[379202330,1755185490111,-1598.76,0.00027534,2]
[379202331,1755185490121,-533.39030289,0.00027534,2]
[379202332,1755185490131,-320.51907,0.00027534,7]
[379202333,1755185490146,-2126.86,0.00027534,2]
[379202334,1755185490156,-760.5,0.00027534,2]
[379202335,1755185490168,-3089.27,0.00027534,2]
[379202336,1755185490180,-400.0,0.00027534,2]
[379202337,1755185490190,-4945.47,0.00027534,2]
[379202338,1755185490200,-5572.39,0.00027534,2]
[379202339,1755185490212,-400.0,0.00027534,2]
[379202340,1755185490222,-6068.79,0.00027534,2]
[379202341,1755185490232,-400.0,0.00027534,2]
[379202342,1755185490243,-6569.21,0.00027534,2]
[379202343,1755185490254,-2675.98,0.00027534,2]
[379202344,1755185490264,-3738.53,0.00027534,2]
[379202345,1755185490275,-1969.6,0.00027534,2]
[379202346,1755185490285,-635.64,0.00027534,2]
[379202347,1755185490295,-11584.68,0.00027534,2]
[379202348,1755185490305,-1705.24,0.00027534,2]
[379202349,1755185490315,-803.12,0.00027534,2]
[379202350,1755185490326,-772.51,0.00027534,2]
[379202351,1755185490336,-3012.8,0.00027534,2]
[379202352,1755185490346,-400.0,0.00027534,2]
[379202353,1755185490357,-798.17,0.00027534,2]
[379202354,1755185490367,-1002.32,0.00027534,2]
[379202355,1755185490377,-649.39,0.00027534,2]
[379202356,1755185490387,-2590.45,0.00027534,2]
[379202357,1755185490397,-1031.6,0.00027534,2]
[379202358,1755185490407,-400.0,0.00027534,2]
[379202359,1755185490418,-2501.78,0.00027534,2]
[379202360,1755185490428,-7150.5,0.00027534,2]
[379202361,1755185490438,-541.92,0.00027534,2]
[379202362,1755185490448,-1319.92,0.00027534,2]
[379202363,1755185490458,-702.75,0.00027534,2]
[379202364,1755185490468,-11521.53,0.00027534,2]
[379202365,1755185490478,-400.0,0.00027534,2]
[379202366,1755185490488,-151.0,0.00027534,7]
[379202367,1755185490497,-2639.48,0.00027534,2]
[379202368,1755185490507,-400.0,0.00027534,2]
[379202369,1755185490516,-350.652721,0.00027534,7]
[379202370,1755185490526,-350.652721,0.00027534,7]
[379202371,1755185490535,-9184.76,0.00027534,2]
[379202372,1755185490545,-2628.13,0.00027534,2]
[379202373,1755185490554,-1901.99,0.00027534,2]
[379202374,1755185490564,-400.0,0.00027534,2]
[379202375,1755185490574,-400.0,0.00027534,2]
[379202376,1755185490583,-2470.8,0.00027534,2]
[379202377,1755185490593,-39354.55,0.00027534,2]
[379202378,1755185490602,-400.0,0.00027534,2]
[379202379,1755185490612,-400.0,0.00027534,2]
[379202380,1755185490621,-400.0,0.00027534,2]
[379202381,1755185490631,-944.04,0.00027534,2]
[379202382,1755185490640,-350.652721,0.00027534,7]
[379202383,1755185490650,-1681.82,0.00027534,2]
[379202384,1755185490661,-8381.41,0.00027534,2]
[379202385,1755185490671,-7406.77,0.00027534,2]
[379202386,1755185490680,-5969.73,0.00027534,2]
[379202387,1755185490690,-350.652721,0.00027534,7]
[379202388,1755185490699,-5296.51,0.00027534,2]
[379202389,1755185490709,-2298.66,0.00027534,2]
[379202390,1755185490718,-400.0,0.00027534,2]
[379202391,1755185490728,-400.0,0.00027534,2]
[379202392,1755185490737,-952.22,0.00027534,2]
[379202393,1755185490747,-716.29,0.00027534,2]
[379202394,1755185490757,-4115.14,0.00027534,2]
[379202395,1755185490767,-4861.41,0.00027534,2]
[379202396,1755185490777,-4629.83,0.00027534,2]
[379202397,1755185490787,-683.52,0.00027534,2]
[379202398,1755185490796,-1141.92,0.00027534,2]
[379202399,1755185490806,-400.0,0.00027534,2]
[379202400,1755185490816,-514.37,0.00027534,2]
[379202401,1755185490826,-441.74,0.00027534,2]
[379202402,1755185490836,-2435.1,0.00027534,2]
[379202403,1755185490846,-3410.12,0.00027534,2]
[379202404,1755185490855,-400.0,0.00027534,2]
[379202405,1755185490865,-4714.98,0.00027534,2]
[379202406,1755185490875,-400.0,0.00027534,2]
[379202407,1755185490885,-6256.65,0.00027534,2]
[379202408,1755185490895,-1290.86,0.00027534,2]
[379202409,1755185490905,-12720.06,0.00027534,2]
[379202410,1755185490917,-400.0,0.00027534,2]
[379202411,1755185490927,-5110.67,0.00027534,2]
[379202412,1755185490937,-6007.8,0.00027534,2]
[379202413,1755185490948,-400.0,0.00027534,2]
[379202414,1755185490958,-400.0,0.00027534,2]
[379202415,1755185490969,-3458.23,0.00027534,2]
[379202416,1755185490979,-488.28,0.00027534,2]
[379202417,1755185490990,-400.0,0.00027534,2]
[379202418,1755185491001,-400.0,0.00027534,2]
[379202419,1755185491011,-3689.29,0.00027534,2]
[379202420,1755185491021,-7001.12,0.00027534,2]
[379202421,1755185491031,-716.91,0.00027534,2]
[379202422,1755185491041,-400.0,0.00027534,2]
[379202423,1755185491051,-400.0,0.00027534,2]
[379202424,1755185491061,-400.0,0.00027534,2]
[379202425,1755185491071,-400.0,0.00027534,2]
[379202426,1755185491082,-1668.33,0.00027534,2]
[379202427,1755185491092,-400.0,0.00027534,2]
[379202428,1755185491103,-400.0,0.00027534,2]
[379202429,1755185491113,-400.0,0.00027534,2]
[379202430,1755185491123,-5903.76,0.00027534,2]
[379202431,1755185491135,-976.78,0.00027534,2]
[379202432,1755185491147,-400.0,0.00027534,2]
[379202434,1755185491157,-764.41,0.00027534,2]
[379202435,1755185491172,-804.23,0.00027534,2]
[379202436,1755185491182,-4616.83,0.00027534,2]
[379202437,1755185491193,-5755.46,0.00027534,2]
[379202438,1755185491203,-574.7,0.00027534,2]
[379202439,1755185491218,-400.0,0.00027534,2]
[379202440,1755185491231,-7582.06,0.00027534,2]
[379202441,1755185491242,-407.58,0.00027534,2]
[379202442,1755185491252,-400.0,0.00027534,2]
[379202443,1755185491263,-1893.17,0.00027534,2]
[379202444,1755185491273,-1859.86,0.00027534,2]
[379202445,1755185491283,-634.01,0.00027534,2]
[379202446,1755185491293,-6689.6,0.00027534,2]
[379202447,1755185491303,-6218.57,0.00027534,2]
[379202448,1755185491314,-2972.4,0.00027534,2]
[379202449,1755185491324,-400.0,0.00027534,2]
[379202450,1755185491334,-400.0,0.00027534,2]
[379202451,1755185491344,-400.0,0.00027534,2]
[379202452,1755185491354,-546.84,0.00027534,2]
[379202453,1755185491364,-400.0,0.00027534,2]
[379202454,1755185491374,-943.55,0.00027534,2]
[379202455,1755185491384,-610.39,0.00027534,2]
[379202456,1755185491395,-2397.59,0.00027534,2]
[379202457,1755185491405,-7967.93,0.00027534,2]
[379202458,1755185491419,-891.65,0.00027534,2]
[379202459,1755185491430,-2447.93,0.00027534,2]
[379202460,1755185491440,-400.0,0.00027534,2]
[379202461,1755185491450,-3948.42,0.00027534,2]
[379202462,1755185491461,-400.0,0.00027534,2]
[379202463,1755185491472,-2259.68,0.00027534,2]
[379202464,1755185491483,-7694.47,0.00027534,2]
[379202465,1755185491493,-448.36,0.00027534,2]
[379202466,1755185491503,-400.0,0.00027534,2]
[379202467,1755185491514,-2448.57,0.00027534,2]
[379202468,1755185491524,-400.0,0.00027534,2]
[379202469,1755185491535,-16030.0,0.00027534,2]
[379202470,1755185491545,-400.0,0.00027534,2]
[379202471,1755185491555,-820.41,0.00027534,2]
[379202472,1755185491565,-10134.15,0.00027534,2]
[379202473,1755185491575,-5823.46,0.00027534,2]
[379202474,1755185491586,-11287.08,0.00027534,2]
[379202475,1755185491596,-400.0,0.00027534,2]
[379202476,1755185491606,-833.81,0.00027534,2]
[379202477,1755185491616,-4404.54,0.00027534,2]
[379202478,1755185491626,-400.0,0.00027534,2]
[379202479,1755185491636,-2799.25,0.00027534,2]
[379202480,1755185491647,-400.0,0.00027534,2]
[379202481,1755185491657,-400.0,0.00027534,2]
[379202482,1755185491670,-6766.18,0.00027534,2]
[379202483,1755185491680,-11943.33,0.00027534,2]
[379202484,1755185491691,-6257.67,0.00027534,2]
[379202485,1755185491702,-1030.78,0.00027534,2]
[379202486,1755185491712,-9727.26,0.00027534,2]
[379202487,1755185491722,-528.98,0.00027534,2]
[379202488,1755185491733,-400.0,0.00027534,2]
[379202489,1755185491743,-2546.41,0.00027534,2]
[379202490,1755185491753,-658.73,0.00027534,2]
[379202491,1755185491763,-400.0,0.00027534,2]
[379202492,1755185491775,-400.0,0.00027534,2]
[379202493,1755185491785,-3468.07,0.00027534,2]
[379202494,1755185491796,-5787.92,0.00027534,2]
[379202495,1755185491807,-151.0,0.00027534,7]
[379202496,1755185491817,-5614.51,0.00027534,2]
[379202497,1755185491827,-542.39,0.00027534,2]
[379202498,1755185491837,-6181.13,0.00027534,2]
[379202499,1755185491848,-400.0,0.00027534,2]
[379202500,1755185491858,-400.0,0.00027534,2]
[379202501,1755185491868,-810.94,0.00027534,2]
[379202502,1755185491878,-844.55,0.00027534,2]
[379202503,1755185491888,-4694.06,0.00027534,2]
[379202504,1755185491899,-400.0,0.00027534,2]
[379202505,1755185491908,-3409.43,0.00027534,2]
[379202506,1755185491920,-13993.43,0.00027534,2]
[379202507,1755185491931,-3104.05,0.00027534,2]
[379202508,1755185491940,-8132.34,0.00027534,2]
[379202509,1755185491951,-400.0,0.00027534,2]
[379202510,1755185491961,-459.49,0.00027534,2]
[379202511,1755185491970,-400.0,0.00027534,2]
[379202512,1755185491981,-405.52618669,0.00027534,2]
[379202513,1755185491991,-400.0,0.00027534,2]
[379202514,1755185492001,-400.0,0.00027534,2]
[379202515,1755185492011,-1680.1,0.00027534,2]
[379202516,1755185492022,-1269.76,0.00027534,2]
[379202517,1755185492033,-639.64,0.00027534,2]
[379202518,1755185492043,-311.73211505,0.00027534,2]
[379202519,1755185492053,-3086.39,0.00027534,2]
[379202520,1755185492064,-400.0,0.00027534,2]
[379202521,1755185492074,-8818.84,0.00027534,2]
[379202522,1755185492084,-7132.25,0.00027534,2]
[379202523,1755185492094,-982.43,0.00027534,2]
[379202524,1755185492105,-400.0,0.00027534,2]
[379202525,1755185492115,-400.0,0.00027534,2]
[379202526,1755185492125,-400.0,0.00027534,2]
[379202527,1755185492137,-1884.09,0.00027534,2]
[379202528,1755185492148,-3580.54,0.00027534,2]
[379202529,1755185492159,-1042.17,0.00027534,2]
[379202530,1755185492171,-518.91,0.00027534,2]
[379202531,1755185492183,-5103.32,0.00027534,2]
[379202532,1755185492193,-2831.0,0.00027534,2]
[379202533,1755185492204,-400.0,0.00027534,2]
[379202534,1755185492214,-400.0,0.00027534,2]
[379202535,1755185492224,-3527.71,0.00027534,2]
[379202536,1755185492235,-7148.91,0.00027534,2]
[379202537,1755185492246,-1027.01,0.00027534,2]
[379202538,1755185492256,-400.0,0.00027534,2]
[379202539,1755185492266,-400.0,0.00027534,2]
[379202540,1755185492276,-558.79,0.00027534,2]
[379202541,1755185492288,-400.0,0.00027534,2]
[379202542,1755185492298,-1908.65,0.00027534,2]
[379202543,1755185492308,-400.0,0.00027534,2]
[379202544,1755185492319,-2836.21,0.00027534,2]
[379202545,1755185492329,-713.37,0.00027534,2]
[379202546,1755185492339,-1971.5,0.00027534,2]
[379202547,1755185492349,-449.9348088,0.00027534,2]
[379202548,1755185492359,-602.0,0.00027534,2]
[379202549,1755185492371,-861.1,0.00027534,2]
[379202550,1755185492381,-1435.4,0.00027534,2]
[379202551,1755185492391,-1338.03,0.00027534,2]
[379202552,1755185492402,-400.0,0.00027534,2]
[379202553,1755185492413,-1734.04,0.00027534,2]
[379202554,1755185492424,-1191.19,0.00027534,2]
[379202555,1755185492434,-2988.47,0.00027534,2]
[379202556,1755185492445,-897.68,0.00027534,2]
[379202557,1755185492456,-400.0,0.00027534,2]
[379202558,1755185492466,-5221.68,0.00027534,2]
[379202559,1755185492476,-400.0,0.00027534,2]
[379202560,1755185492487,-4310.23,0.00027534,2]
[379202561,1755185492497,-400.0,0.00027534,2]
[379202562,1755185492507,-863.7,0.00027534,2]
[379202563,1755185492517,-400.0,0.00027534,2]
[379202564,1755185492527,-400.0,0.00027534,2]
[379202565,1755185492538,-320.59153476,0.00027534,2]
[379202566,1755185492549,-949.69,0.00027534,2]
[379202567,1755185492559,-415.5,0.00027534,2]
[379202568,1755185492570,-1405.04,0.00027534,2]
[379202569,1755185492580,-740.35,0.00027534,2]
[379202570,1755185492590,-549.24,0.00027534,2]
[379202571,1755185492600,-989.51,0.00027534,2]
[379202572,1755185492610,-400.0,0.00027534,2]
[379202573,1755185492620,-6493.53,0.00027534,2]
[379202574,1755185492630,-435.88332264,0.00027534,2]
[379202575,1755185492640,-651.45,0.00027534,2]
[379202576,1755185492650,-8907.58,0.00027534,2]
[379202577,1755185492660,-400.0,0.00027534,2]
[379202578,1755185492672,-890.66,0.00027534,2]
[379202579,1755185492682,-400.0,0.00027534,2]
[379202580,1755185492692,-3080.56,0.00027534,2]
[379202581,1755185492702,-889.56,0.00027534,2]
[379202582,1755185492712,-435.86,0.00027534,2]
[379202583,1755185492722,-400.0,0.00027534,2]
[379202584,1755185492732,-400.0,0.00027534,2]
[379202585,1755185492742,-3155.29,0.00027534,2]
[379202586,1755185492752,-1232.66,0.00027534,2]
[379202587,1755185492762,-2361.03,0.00027534,2]
[379202588,1755185492772,-11996.04,0.00027534,2]
[379202589,1755185492782,-5439.79,0.00027534,2]
[379202590,1755185492792,-1878.85,0.00027534,2]
[379202591,1755185492802,-6402.09,0.00027534,2]
[379202592,1755185492811,-5293.55,0.00027534,2]
[379202593,1755185492821,-400.0,0.00027534,2]
[379202594,1755185492831,-3134.58,0.00027534,2]
[379202595,1755185492841,-6179.35,0.00027534,2]
[379202596,1755185492851,-400.0,0.00027534,2]
[379202597,1755185492861,-3584.76,0.00027534,2]
[379202598,1755185492872,-4246.962703,0.00027534,2]
[379202599,1755185492882,-2219.06,0.00027534,2]
[379202600,1755185492892,-400.0,0.00027534,2]
[379202601,1755185492902,-400.0,0.00027534,2]
[379202602,1755185492913,-1376.19,0.00027534,2]
[379202603,1755185492923,-2484.242437,0.00027534,7]
[379202604,1755185492933,-591.06,0.00027534,2]
[379202605,1755185492944,-11317.12,0.00027534,2]
[379202606,1755185492954,-400.0,0.00027534,2]
[379202607,1755185492965,-853.01,0.00027534,2]
[379202608,1755185492975,-845.77,0.00027534,2]
[379202609,1755185492986,-2484.242437,0.00027534,7]
[379202610,1755185492996,-530.0,0.00027534,2]
[379202611,1755185493008,-15041.54,0.00027534,2]
[379202612,1755185493018,-483.91384869,0.00027534,2]
[379202613,1755185493029,-3604.68,0.00027534,2]
[379202614,1755185493040,-2847.242473,0.00027534,2]
[379202615,1755185493051,-5380.49,0.00027534,2]
[379202616,1755185493062,-400.0,0.00027534,2]
[379202617,1755185493073,-6299.18,0.00027534,2]
[379202618,1755185493084,-250.85637585,0.00027544,2]
[379202619,1755185493095,-1020.05914795,0.00027545,2]
[379202620,1755185493106,-166.99,0.00027565,2]
[379202621,1755185493116,-4363.24311273,0.00027571,2]
[379202622,1755185493128,-171.84783089,0.00027573,5]
[379202623,1755185493141,-500.0,0.00027573,5]
[379202624,1755185493152,-500.0,0.00027573,5]
[379202625,1755185493163,-577.21294321,0.00027573,5]
[379202626,1755185493175,-500.0,0.00027573,5]
[379202627,1755185493186,-500.0,0.00027573,5]
[379202628,1755185493199,-500.0,0.00027573,5]
[379202629,1755185493210,-500.0,0.00027573,5]
[379202630,1755185493223,-500.0,0.00027573,5]
[379202631,1755185493647,-500.0,0.00027573,5]
[379202632,1755185493658,-500.0,0.00027573,5]
[379202633,1755185493668,-500.0,0.00027573,5]
[379202634,1755185493679,-500.0,0.00027573,5]
[379202635,1755185493688,-500.0,0.00027573,5]
[379202636,1755185493699,-169.06141551,0.00027573,5]
[379202637,1755185493709,-500.0,0.00027573,5]
[379202638,1755185493719,-504.94078322,0.00027573,5]
[379202639,1755185493729,-500.0,0.00027573,5]
[379202640,1755185493741,-500.0,0.00027573,5]
[379202641,1755185493755,-500.0,0.00027573,5]
[379202642,1755185493765,-504.98432434,0.00027573,3]
[379202643,1755185493776,-500.0,0.00027573,5]
[379202644,1755185493786,-501.07328926,0.00027573,5]
[379202645,1755185493795,-500.0,0.00027573,2]
[379202646,1755185493804,-500.0,0.00027573,5]
[379202647,1755185493814,-500.0,0.00027573,5]
[379202648,1755185493824,-500.0,0.00027573,5]
[379202649,1755185493833,-320.9337109,0.00027573,5]
[379202650,1755185493843,-500.0,0.00027573,5]
[379202651,1755185493853,-500.0,0.00027573,5]
[379202652,1755185493863,-151.0,0.0002759,7]
[379202653,1755185493873,-579.507712,0.0002759,7]
[379202654,1755185493883,-579.507712,0.0002759,7]
[379202655,1755185493892,-151.0,0.0002759,7]
[379202656,1755185493902,-500.0,0.000276,2]
[379202657,1755185493912,-843.66,0.000276,2]
[379202658,1755185493925,-363.40829438,0.0002763,2]
[379202659,1755185493934,-224.41056542,0.00027638,2]
[379202660,1755185493944,-151.0,0.0002765,7]
[379202661,1755185493954,-264.271689,0.0002765,7]
[379202662,1755185493963,-264.271689,0.0002765,7]
[379202663,1755185493973,-250.85637585,0.00027653,2]
[379202664,1755185493983,-315.425484,0.00027659,7]
[379202665,1755185493994,-315.425484,0.00027659,7]
[379202666,1755185494003,-237.212332,0.0002766,7]
[379202667,1755185494013,-237.212332,0.0002766,7]
[379202668,1755185494023,-151.0,0.0002766,7]
[379202669,1755185494032,-1064.82663407,0.00027661,2]
[379202670,1755185494042,-501.87582706,0.00027668,30]
[379202671,1755185494052,-5170.89350907,0.00027668,30]
[379202672,1755185494061,-300.0,0.0002767,10]
[379202673,1755185494071,-666.0,0.0002767,10]
[379202674,1755185494080,-300.0,0.0002767,10]
[379202675,1755185494090,-300.0,0.0002767,10]
[379202676,1755185494099,-1112.40990176,0.0002767,2]
[379202677,1755185494110,-150.0,0.0002767,2]
[379202678,1755185494120,-150.0,0.0002767,2]
[379202679,1755185494130,-150.0,0.0002767,2]
[379202680,1755185494143,-150.0,0.0002767,2]
[379202681,1755185494152,-154.99228038,0.0002767,2]
[379202682,1755185494162,-576.0,0.00027671,2]
[379202683,1755185494178,-619.0,0.00027671,2]
[379202684,1755185494188,-500.0,0.00027671,2]
[379202685,1755185494199,-593.33491738,0.00027671,2]
[379202686,1755185494209,-569.0,0.00027671,2]
[379202687,1755185494223,-1029.0,0.00027671,2]
[379202688,1755185494235,-500.0,0.00027671,2]
[379202689,1755185494245,-4724.0,0.00027671,2]
[379202690,1755185494255,-500.0,0.00027671,2]
[379202691,1755185494265,-500.0,0.00027671,2]
[379202692,1755185494275,-150.0,0.00027671,2]
[379202693,1755185494285,-150.0,0.00027671,2]
[379202694,1755185494295,-500.0,0.00027671,2]
[379202695,1755185494305,-150.0,0.00027671,2]
[379202696,1755185494315,-150.0,0.00027671,2]
[379202697,1755185494325,-151.01061347,0.00027671,2]
[379202698,1755185494335,-500.0,0.00027671,2]
[379202699,1755185494345,-442.0,0.00027671,2]
[379202700,1755185494355,-500.0,0.00027671,2]
[379202701,1755185494366,-446.0,0.00027671,2]
[379202702,1755185494375,-500.0,0.00027671,2]
[379202703,1755185494386,-500.0,0.00027671,2]
[379202704,1755185494396,-150.0,0.00027671,2]
[379202705,1755185494406,-150.0,0.00027671,2]
[379202706,1755185494419,-159.28289761,0.00027671,2]
[379202707,1755185494430,-150.0,0.00027671,2]
[379202708,1755185494441,-500.0,0.00027671,2]
[379202709,1755185494450,-739.0,0.00027671,2]
[379202710,1755185494460,-150.0,0.00027671,2]
[379202711,1755185494470,-500.0,0.00027671,2]
[379202712,1755185494480,-500.0,0.00027671,2]
[379202713,1755185494490,-500.0,0.00027671,2]
[379202714,1755185494499,-500.0,0.00027671,2]
[379202715,1755185494509,-1282.0,0.00027671,2]
[379202716,1755185494519,-500.0,0.00027671,2]
[379202717,1755185494530,-151.0,0.00027671,7]